fUST/lending_fUST_20240830
["ID","MTS","AMOUNT","RATE_DAILY","PERIOD"]
[336629923,1724982643526,-500.0,0.0002,2]
[336629925,1724982643537,-500.0,0.0002,2]
[336629926,1724982643547,-151.0,0.0002,2]
[336629927,1724982643559,-382.3377588,0.0002,2]
[336629928,1724982643571,-836.48,0.0002,2]
[336629929,1724982643580,-500.0,0.0002,2]
[336629930,1724982643599,-556.62,0.0002,2]
[336629931,1724982643609,-648.06,0.0002,2]
[336629932,1724982643618,-700.89,0.0002,2]
[336629933,1724982643629,-500.0,0.0002,2]
[336629934,1724982643639,-500.0,0.0002,2]
[336629935,1724982643649,-500.0,0.0002,2]
[336629936,1724982643659,-500.0,0.0002,2]
[336629937,1724982643669,-500.0,0.0002,2]
[336629938,1724982643679,-2384.74,0.0002,2]
[336629939,1724982643689,-200.0,0.0002,2]
[336629940,1724982643699,-546.64,0.0002,2]
[336629941,1724982643708,-500.0,0.0002,2]
[336629942,1724982643718,-2724.84,0.0002,2]
[336629943,1724982643728,-380.9108352,0.0002,2]
[336629944,1724982643742,-500.0,0.0002,2]
[336629945,1724982643752,-316.34729808,0.0002,2]
[336629946,1724982643765,-505.52,0.0002,2]
[336629947,1724982643775,-1803.48,0.0002,2]
[336629948,1724982643785,-500.0,0.0002,2]
[336629949,1724982643795,-594.5,0.0002,2]
[336629951,1724982643807,-500.0,0.0002,2]
[336629952,1724982643818,-500.0,0.0002,2]
[336629953,1724982643829,-302.24446742,0.0002,2]
[336629954,1724982643841,-500.0,0.0002,2]
[336629955,1724982643853,-500.0,0.0002,2]
[336629956,1724982643865,-732.32,0.0002,2]
[336629957,1724982643875,-500.0,0.0002,2]
[336629958,1724982643885,-1033.36,0.0002,2]
[336629960,1724982643894,-583.16,0.0002,2]
[336629962,1724982643904,-507.46042032,0.0002,2]
[336629964,1724982643915,-508.73904904,0.0002,2]
[336629966,1724982643927,-500.0,0.0002,2]
[336629968,1724982643940,-500.0,0.0002,2]
[336629969,1724982643949,-500.0,0.0002,2]
[336629971,1724982643959,-500.0,0.0002,2]
[336629973,1724982643968,-1670.4,0.0002,2]
[336629975,1724982643979,-584.53,0.0002,2]
[336629977,1724982643989,-500.0,0.0002,2]
[336629980,1724982644002,-500.0,0.0002,2]
[336629982,1724982644011,-500.0,0.0002,2]
[336629984,1724982644022,-500.0,0.0002,2]
[336629985,1724982644032,-500.0,0.0002,2]
[336629986,1724982644043,-500.0,0.0002,2]
[336629987,1724982644055,-500.0,0.0002,2]
[336629988,1724982644065,-782.57,0.0002,2]
[336629989,1724982644076,-754.23,0.0002,2]
[336629990,1724982644086,-2568.45,0.0002,2]
[336629991,1724982644096,-500.0,0.0002,2]
[336629992,1724982644107,-4807.29,0.0002,2]
[336629993,1724982644116,-151.0,0.0002,2]
[336629994,1724982644126,-1984.15,0.0002,2]
[336629995,1724982644136,-500.0,0.0002,2]
[336629996,1724982644147,-500.0,0.0002,2]
[336629997,1724982644158,-520.85973501,0.0002,2]
[336629998,1724982644167,-1634.89,0.0002,2]
[336629999,1724982644178,-517.98,0.0002,2]
[336630000,1724982644187,-562.33,0.0002,2]
[336630001,1724982644200,-500.0,0.0002,2]
[336630002,1724982644210,-500.0,0.0002,2]
[336630003,1724982644222,-500.0,0.0002,2]
[336630004,1724982644232,-1755.65,0.0002,2]
[336630005,1724982644243,-411.78265061,0.0002,2]
[336630006,1724982644253,-542.43,0.0002,2]
[336630007,1724982644264,-598.30167602,0.0002,2]
[336630008,1724982644274,-500.0,0.0002,2]
[336630009,1724982644285,-1287.01,0.0002,2]
[336630010,1724982644295,-1075.78,0.0002,2]
[336630011,1724982644306,-500.0,0.0002,2]
[336630012,1724982644317,-636.04,0.0002,2]
[336630013,1724982644327,-2207.85,0.0002,2]
[336630014,1724982644341,-1219.37,0.0002,2]
[336630015,1724982644352,-1461.81,0.0002,2]
[336630016,1724982644363,-500.0,0.0002,2]
[336630017,1724982644374,-500.0,0.0002,2]
[336630018,1724982644384,-2536.87,0.0002,2]
[336630019,1724982644395,-4386.37,0.0002,2]
[336630020,1724982644406,-500.0,0.0002,2]
[336630021,1724982644415,-500.0,0.0002,2]
[336630022,1724982644425,-500.0,0.0002,2]
[336630023,1724982644434,-25448.2736734,0.00020125,4]
[336630024,1724982644444,-302.24446742,0.000202,2]
[336630025,1724982644453,-701.66,0.00020273,2]
[336630026,1724982644462,-500.0,0.00020273,2]
[336630027,1724982644471,-500.0,0.00020273,2]
[336630028,1724982644480,-904.19,0.00020273,2]
[336630029,1724982644490,-500.0,0.00020273,2]
[336630030,1724982644499,-500.0,0.00020273,2]
[336630031,1724982644508,-500.0,0.00020273,2]
[336630032,1724982644518,-500.0,0.00020273,2]
[336630033,1724982644527,-774.38,0.00020273,2]
[336630034,1724982644537,-500.0,0.00020273,2]
[336630035,1724982644547,-500.0,0.00020273,2]
[336630036,1724982644556,-400.3960351,0.00020273,2]
[336630037,1724982644566,-500.0,0.00020273,2]
[336630038,1724982644575,-158.71404665,0.00020273,2]
[336630039,1724982644585,-500.0,0.00020273,2]
[336630040,1724982644594,-500.0,0.00020273,2]
[336630041,1724982644603,-643.5,0.00020273,2]
[336630042,1724982644613,-500.0,0.00020273,2]
[336630043,1724982644623,-500.0,0.00020273,2]
[336630044,1724982644633,-151.0,0.00020273,2]
[336630045,1724982644642,-836.48,0.00020273,2]
[336630046,1724982644652,-500.0,0.00020273,2]
[336630047,1724982644661,-556.62,0.00020273,2]
[336630048,1724982644671,-648.06,0.00020273,2]
[336630049,1724982644679,-700.89,0.00020273,2]
[336630050,1724982644689,-500.0,0.00020273,2]
[336630051,1724982644698,-500.0,0.00020273,2]
[336630052,1724982644707,-500.0,0.00020273,2]
[336630053,1724982644717,-500.0,0.00020273,2]
[336630054,1724982644727,-500.0,0.00020273,2]
[336630055,1724982644741,-2384.74,0.00020273,2]
[336630056,1724982644751,-200.0,0.00020273,2]
[336630057,1724982644760,-546.64,0.00020273,2]
[336630058,1724982644770,-500.0,0.00020273,2]
[336630059,1724982644781,-2724.84,0.00020273,2]
[336630060,1724982644790,-500.0,0.00020273,2]
[336630061,1724982644800,-505.52,0.00020273,2]
[336630062,1724982644810,-1803.48,0.00020273,2]
[336630063,1724982644820,-500.0,0.00020273,2]
[336630064,1724982644829,-594.5,0.00020273,2]
[336630065,1724982644841,-500.0,0.00020273,2]
[336630066,1724982644852,-500.0,0.00020273,2]
[336630067,1724982644862,-500.0,0.00020273,2]
[336630068,1724982644872,-500.0,0.00020273,2]
[336630069,1724982644883,-732.32,0.00020273,2]
[336630070,1724982644892,-500.0,0.00020273,2]
[336630071,1724982644903,-1033.36,0.00020273,2]
[336630072,1724982644913,-583.16,0.00020273,2]
[336630073,1724982644923,-500.0,0.00020273,2]
[336630074,1724982644934,-500.0,0.00020273,2]
[336630075,1724982644943,-515.96805516,0.00020273,2]
[336630076,1724982644955,-1670.4,0.00020273,2]
[336630077,1724982644967,-584.53,0.00020273,2]
[336630078,1724982644978,-500.0,0.00020273,2]
[336630079,1724982644988,-500.0,0.00020273,2]
[336630080,1724982644997,-500.0,0.00020273,2]
[336630081,1724982645008,-218.51742533,0.00020273,2]
[336630082,1724982645019,-500.0,0.00020273,2]
[336630083,1724982645028,-500.0,0.00020273,2]
[336630084,1724982645038,-500.0,0.00020273,2]
[336630085,1724982645047,-782.57,0.00020273,2]
[336630086,1724982645057,-754.23,0.00020273,2]
[336630087,1724982645066,-2568.45,0.00020273,2]
[336630088,1724982645076,-500.0,0.00020273,2]
[336630089,1724982645085,-4807.29,0.00020273,2]
[336630090,1724982645095,-151.0,0.00020273,2]
[336630091,1724982645105,-1984.15,0.00020273,2]
[336630092,1724982645116,-500.0,0.00020273,2]
[336630093,1724982645125,-336.47556225,0.00020273,2]
[336630094,1724982645134,-1634.89,0.00020273,2]
[336630095,1724982645144,-517.98,0.00020273,2]
[336630096,1724982645153,-562.33,0.00020273,2]
[336630097,1724982645162,-500.0,0.00020273,2]
[336630098,1724982645171,-500.0,0.00020273,2]
[336630099,1724982645180,-500.0,0.00020273,2]
[336630100,1724982645189,-1755.65,0.00020273,2]
[336630101,1724982645198,-542.43,0.00020273,2]
[336630102,1724982645207,-500.0,0.00020273,2]
[336630103,1724982645217,-1287.01,0.00020273,2]
[336630104,1724982645226,-1075.78,0.00020273,2]
[336630105,1724982645235,-500.0,0.00020273,2]
[336630106,1724982645245,-636.04,0.00020273,2]
[336630107,1724982645254,-2207.85,0.00020273,2]
[336630108,1724982645263,-1219.37,0.00020273,2]
[336630109,1724982645272,-1461.81,0.00020273,2]
[336630110,1724982645281,-500.0,0.00020273,2]
[336630111,1724982645291,-500.0,0.00020273,2]
[336630112,1724982645300,-2536.87,0.00020273,2]
[336630113,1724982645309,-4386.37,0.00020273,2]
[336630114,1724982645318,-500.0,0.00020273,2]
[336630115,1724982645327,-500.0,0.00020273,2]
[336630116,1724982645337,-500.0,0.00020273,2]
[336630117,1724982645346,-150.112233,0.000204,4]
[336630118,1724982645356,-302.24446742,0.000204,2]
[336630119,1724982645365,-1444.73392352,0.00020547,5]
[336630120,1724982645374,-701.66,0.00020547,2]
[336630121,1724982645384,-500.0,0.00020547,2]
[336630122,1724982645393,-500.0,0.00020547,2]
[336630123,1724982645402,-904.19,0.00020547,2]
[336630124,1724982645411,-364.66821983,0.00020547,2]
[336630125,1724982645421,-500.0,0.00020547,2]
[336630126,1724982645430,-500.0,0.00020547,2]
[336630127,1724982645439,-500.0,0.00020547,2]
[336630128,1724982645449,-774.38,0.00020547,2]
[336630129,1724982645458,-500.0,0.00020547,2]
[336630130,1724982645468,-500.0,0.00020547,2]
[336630131,1724982645477,-246.16275622,0.00020547,2]
[336630132,1724982645486,-500.0,0.00020547,2]
[336630133,1724982645496,-500.0,0.00020547,2]
[336630134,1724982645505,-643.5,0.00020547,2]
[336630135,1724982645515,-500.0,0.00020547,2]
[336630136,1724982645524,-500.0,0.00020547,2]
[336630137,1724982645533,-151.0,0.00020547,2]
[336630138,1724982645543,-836.48,0.00020547,2]
[336630139,1724982645552,-500.0,0.00020547,2]
[336630140,1724982645561,-556.62,0.00020547,2]
[336630141,1724982645571,-648.06,0.00020547,2]
[336630142,1724982645580,-700.89,0.00020547,2]
[336630143,1724982645590,-500.0,0.00020547,2]
[336630144,1724982645599,-500.0,0.00020547,2]
[336630145,1724982645609,-500.0,0.00020547,2]
[336630146,1724982645618,-500.0,0.00020547,2]
[336630147,1724982645627,-500.0,0.00020547,2]
[336630148,1724982645637,-2384.74,0.00020547,2]
[336630149,1724982645647,-251.46902048,0.00020547,2]
[336630150,1724982645656,-546.64,0.00020547,2]
[336630151,1724982645665,-500.0,0.00020547,2]
[336630152,1724982645674,-2724.84,0.00020547,2]
[336630153,1724982645684,-500.0,0.00020547,2]
[336630154,1724982645693,-505.52,0.00020547,2]
[336630155,1724982645702,-1803.48,0.00020547,2]
[336630156,1724982645712,-500.0,0.00020547,2]
[336630157,1724982645722,-594.5,0.00020547,2]
[336630158,1724982645731,-500.0,0.00020547,2]
[336630159,1724982645744,-500.0,0.00020547,2]
[336630160,1724982645753,-500.0,0.00020547,2]
[336630161,1724982645763,-500.0,0.00020547,2]
[336630162,1724982645772,-732.32,0.00020547,2]
[336630163,1724982645783,-500.0,0.00020547,2]
[336630164,1724982645792,-1033.36,0.00020547,2]
[336630165,1724982645802,-583.16,0.00020547,2]
[336630166,1724982645812,-500.0,0.00020547,2]
[336630167,1724982645822,-434.23180333,0.00020547,2]
[336630168,1724982645831,-1670.4,0.00020547,2]
[336630169,1724982645842,-584.53,0.00020547,2]
[336630170,1724982645851,-500.0,0.00020547,2]
[336630171,1724982645861,-500.0,0.00020547,2]
[336630172,1724982645871,-500.0,0.00020547,2]
[336630173,1724982645881,-500.0,0.00020547,2]
[336630174,1724982646015,-500.0,0.00020547,2]
[336630175,1724982646025,-500.0,0.00020547,2]
[336630176,1724982646036,-782.57,0.00020547,2]
[336630177,1724982646048,-754.23,0.00020547,2]
[336630178,1724982646058,-2568.45,0.00020547,2]
[336630179,1724982646070,-500.0,0.00020547,2]
[336630181,1724982646080,-4807.29,0.00020547,2]
[336630182,1724982646090,-151.0,0.00020547,2]
[336630183,1724982646100,-1984.15,0.00020547,2]
[336630184,1724982646110,-500.0,0.00020547,2]
[336630185,1724982646119,-1634.89,0.00020547,2]
[336630186,1724982646129,-517.98,0.00020547,2]
[336630187,1724982646139,-500.0,0.00020547,2]
[336630188,1724982646148,-562.33,0.00020547,2]
[336630189,1724982646157,-500.0,0.00020547,2]
[336630190,1724982646166,-576.31977249,0.00020547,2]
[336630191,1724982646175,-1755.65,0.00020547,2]
[336630192,1724982646185,-542.43,0.00020547,2]
[336630193,1724982646196,-500.0,0.00020547,2]
[336630194,1724982646207,-1287.01,0.00020547,2]
[336630195,1724982646217,-1075.78,0.00020547,2]
[336630196,1724982646228,-500.0,0.00020547,2]
[336630197,1724982646240,-636.04,0.00020547,2]
[336630198,1724982646250,-2207.85,0.00020547,2]
[336630199,1724982646262,-1219.37,0.00020547,2]
[336630200,1724982646271,-1461.81,0.00020547,2]
[336630201,1724982646280,-500.0,0.00020547,2]
[336630202,1724982646290,-500.0,0.00020547,2]
[336630203,1724982646300,-2536.87,0.00020547,2]
[336630205,1724982646311,-4386.37,0.00020547,2]
[336630206,1724982646322,-500.0,0.00020547,2]
[336630207,1724982646332,-500.0,0.00020547,2]
[336630208,1724982646342,-507.58174219,0.00020547,2]
[336630209,1724982646351,-1000.0,0.00020553,2]
[336630210,1724982646361,-1000.0,0.00020574,2]
[336630211,1724982646369,-1000.0,0.00020597,2]
[336630212,1724982646378,-150.112233,0.000206,3]
[336630213,1724982646387,-422.28038875,0.000206,2]
[336630214,1724982646396,-150.112233,0.000206,3]
[336630215,1724982646405,-351.68382194,0.00020649,2]
[336630216,1724982646414,-1000.0,0.00020653,2]
[336630217,1724982646423,-150.112233,0.000207,4]
[336630218,1724982646433,-1000.0,0.00020711,2]
[336630219,1724982646442,-151.0,0.00020711,2]
[336630220,1724982646451,-1000.0,0.00020714,2]
[336630221,1724982646460,-151.0,0.00020714,2]
[336630222,1724982646469,-1890.37477486,0.0002072,2]
[336630223,1724982646477,-1000.0,0.00020729,2]
[336630224,1724982646488,-1000.0,0.00020737,2]
[336630225,1724982646499,-1000.0,0.00020743,2]
[336630226,1724982646510,-1005.3660251,0.00020752,2]
[336630227,1724982646519,-304.94148291,0.00020786,2]
[336630228,1724982646529,-300.0,0.00020786,2]
[336630229,1724982646539,-1000.0,0.00020796,2]
[336630230,1724982646549,-184.25,0.000208,2]
[336630231,1724982646558,-150.112233,0.000208,5]
[336630232,1724982646568,-1000.0,0.00020809,2]
[336630233,1724982646579,-235.776794,0.00020812,2]
[336630234,1724982646593,-1507.82728885,0.00020812,2]
[336630235,1724982646604,-1000.0,0.00020817,2]
[336630236,1724982646616,-85182.10863929,0.0002082,4]
[336630237,1724982646626,-158.926326,0.0002082,2]
[336630238,1724982646639,-151.0,0.0002082,2]
[336630239,1724982646650,-706.41932482,0.00020821,2]
[336630240,1724982646661,-500.0,0.00020821,2]
[336630241,1724982646673,-701.66,0.00020821,2]
[336630242,1724982646684,-500.0,0.00020821,2]
[336630243,1724982646693,-500.0,0.00020821,2]
[336630244,1724982646702,-904.19,0.00020821,2]
[336630245,1724982646713,-500.0,0.00020821,2]
[336630246,1724982646722,-500.0,0.00020821,2]
[336630247,1724982646734,-505.46227481,0.00020821,2]
[336630248,1724982646746,-774.38,0.00020821,2]
[336630249,1724982646756,-500.0,0.00020821,2]
[336630250,1724982646768,-500.0,0.00020821,2]
[336630251,1724982646779,-206.08360037,0.00020821,2]
[336630252,1724982646789,-500.0,0.00020821,2]
[336630253,1724982646799,-643.5,0.00020821,2]
[336630254,1724982646809,-500.0,0.00020821,2]
[336630255,1724982646821,-500.0,0.00020821,2]
[336630256,1724982646831,-836.48,0.00020821,2]
[336630257,1724982646846,-500.0,0.00020821,2]
[336630258,1724982646855,-556.62,0.00020821,2]
[336630259,1724982646864,-648.06,0.00020821,2]
[336630260,1724982646873,-700.89,0.00020821,2]
[336630261,1724982646882,-500.0,0.00020821,2]
[336630262,1724982646892,-500.0,0.00020821,2]
[336630263,1724982646902,-500.0,0.00020821,2]
[336630264,1724982646911,-500.0,0.00020821,2]
[336630265,1724982646921,-500.0,0.00020821,2]
[336630266,1724982646930,-2384.74,0.00020821,2]
[336630267,1724982646939,-546.64,0.00020821,2]
[336630268,1724982646948,-500.0,0.00020821,2]
[336630269,1724982646957,-2724.84,0.00020821,2]
[336630270,1724982646966,-500.0,0.00020821,2]
[336630271,1724982646976,-505.52,0.00020821,2]
[336630272,1724982646985,-1803.48,0.00020821,2]
[336630273,1724982646994,-500.0,0.00020821,2]
[336630274,1724982647004,-594.5,0.00020821,2]
[336630275,1724982647014,-500.0,0.00020821,2]
[336630276,1724982647024,-500.0,0.00020821,2]
[336630277,1724982647033,-500.0,0.00020821,2]
[336630278,1724982647043,-500.0,0.00020821,2]
[336630279,1724982647052,-732.32,0.00020821,2]
[336630280,1724982647062,-500.0,0.00020821,2]
[336630282,1724982647072,-1033.36,0.00020821,2]
[336630284,1724982647082,-583.16,0.00020821,2]
[336630286,1724982647092,-500.0,0.00020821,2]
[336630288,1724982647102,-1670.4,0.00020821,2]
[336630290,1724982647111,-584.53,0.00020821,2]
[336630292,1724982647121,-500.0,0.00020821,2]
[336630293,1724982647130,-500.0,0.00020821,2]
[336630295,1724982647140,-500.0,0.00020821,2]
[336630297,1724982647151,-500.0,0.00020821,2]
[336630298,1724982647160,-500.0,0.00020821,2]
[336630299,1724982647170,-500.0,0.00020821,2]
[336630300,1724982647179,-782.57,0.00020821,2]
[336630301,1724982647189,-754.23,0.00020821,2]
[336630302,1724982647200,-2568.45,0.00020821,2]
[336630303,1724982647210,-500.0,0.00020821,2]
[336630304,1724982647221,-4807.29,0.00020821,2]
[336630305,1724982647231,-159.2766,0.00020821,2]
[336630306,1724982647240,-1984.15,0.00020821,2]
[336630307,1724982647250,-500.0,0.00020821,2]
[336630308,1724982647262,-1634.89,0.00020821,2]
[336630309,1724982647272,-517.98,0.00020821,2]
[336630310,1724982647283,-500.0,0.00020821,2]
[336630311,1724982647294,-562.33,0.00020821,2]
[336630312,1724982647304,-500.0,0.00020821,2]
[336630313,1724982647313,-1755.65,0.00020821,2]
[336630314,1724982647324,-542.43,0.00020821,2]
[336630315,1724982647335,-500.0,0.00020821,2]
[336630316,1724982647347,-1287.01,0.00020821,2]
[336630317,1724982647358,-500.0,0.00020821,2]
[336630318,1724982647369,-1075.78,0.00020821,2]
[336630319,1724982647379,-636.04,0.00020821,2]
[336630320,1724982647388,-2207.85,0.00020821,2]
[336630321,1724982647397,-1219.37,0.00020821,2]
[336630322,1724982647407,-1461.81,0.00020821,2]
[336630323,1724982647415,-500.0,0.00020821,2]
[336630324,1724982647424,-500.0,0.00020821,2]
[336630325,1724982647434,-2536.87,0.00020821,2]
[336630326,1724982647444,-4386.37,0.00020821,2]
[336630327,1724982647453,-500.0,0.00020821,2]
[336630328,1724982647464,-500.0,0.00020821,2]
[336630329,1724982647475,-918.24,0.000209,2]
[336630330,1724982647488,-1055.16,0.000209,2]
[336630331,1724982647499,-150.112233,0.000209,4]
[336630332,1724982647510,-150.112233,0.000209,4]
[336630333,1724982647521,-3000.0,0.00021,2]
[336630334,1724982647533,-150.112233,0.00021,4]
[336630335,1724982647543,-3000.0,0.0002101,2]
[336630336,1724982647552,-3000.0,0.0002102,2]
[336630337,1724982647561,-3000.0,0.0002103,2]
[336630338,1724982647571,-3000.0,0.0002104,2]
[336630339,1724982647580,-1901.06494879,0.0002104,3]
[336630340,1724982647591,-3000.0,0.0002105,2]
[336630341,1724982647600,-3000.0,0.0002106,2]
[336630342,1724982647610,-3000.0,0.0002107,2]
[336630343,1724982647619,-500.0,0.00021073,2]
[336630344,1724982647629,-500.0,0.00021073,2]
[336630345,1724982647638,-3000.0,0.0002108,2]
[336630346,1724982647648,-1901.06494879,0.00021085,3]
[336630347,1724982647660,-3000.0,0.0002109,2]
[336630348,1724982647670,-701.66,0.00021095,2]
[336630349,1724982647681,-500.0,0.00021095,2]
[336630350,1724982647692,-500.0,0.00021095,2]
[336630351,1724982647701,-904.19,0.00021095,2]
[336630352,1724982647711,-500.0,0.00021095,2]
[336630353,1724982647722,-500.0,0.00021095,2]
[336630354,1724982647734,-774.38,0.00021095,2]
[336630355,1724982647744,-500.0,0.00021095,2]
[336630356,1724982647754,-500.0,0.00021095,2]
[336630357,1724982647765,-500.0,0.00021095,2]
[336630358,1724982647778,-643.5,0.00021095,2]
[336630359,1724982647788,-500.0,0.00021095,2]
[336630360,1724982647799,-500.0,0.00021095,2]
[336630361,1724982647810,-836.48,0.00021095,2]
[336630362,1724982647820,-500.0,0.00021095,2]
[336630363,1724982647831,-556.62,0.00021095,2]
[336630364,1724982647844,-648.06,0.00021095,2]
[336630365,1724982647853,-700.89,0.00021095,2]
[336630366,1724982647863,-500.0,0.00021095,2]
[336630367,1724982647873,-500.0,0.00021095,2]
[336630368,1724982647884,-500.0,0.00021095,2]
[336630369,1724982647895,-500.0,0.00021095,2]
[336630370,1724982647905,-500.0,0.00021095,2]
[336630371,1724982647916,-2384.74,0.00021095,2]
[336630372,1724982647928,-546.64,0.00021095,2]
[336630373,1724982647938,-500.0,0.00021095,2]
[336630374,1724982647950,-2724.84,0.00021095,2]
[336630375,1724982647962,-633.89421856,0.00021095,2]
[336630376,1724982647972,-505.52,0.00021095,2]
[336630377,1724982647981,-1803.48,0.00021095,2]
[336630378,1724982647991,-500.0,0.00021095,2]
[336630379,1724982648001,-594.5,0.00021095,2]
[336630380,1724982648011,-500.0,0.00021095,2]
[336630381,1724982648024,-500.0,0.00021095,2]
[336630382,1724982648034,-514.22964518,0.00021095,2]
[336630383,1724982648046,-500.0,0.00021095,2]
[336630384,1724982648056,-732.32,0.00021095,2]
[336630385,1724982648066,-500.0,0.00021095,2]
[336630386,1724982648075,-1033.36,0.00021095,2]
[336630387,1724982648084,-583.16,0.00021095,2]
[336630388,1724982648094,-500.0,0.00021095,2]
[336630389,1724982648103,-1670.4,0.00021095,2]
[336630390,1724982648114,-584.53,0.00021095,2]
[336630391,1724982648125,-500.0,0.00021095,2]
[336630392,1724982648135,-500.0,0.00021095,2]
[336630393,1724982648145,-500.0,0.00021095,2]
[336630394,1724982648155,-500.0,0.00021095,2]
[336630395,1724982648165,-500.0,0.00021095,2]
[336630396,1724982648175,-500.0,0.00021095,2]
[336630397,1724982648185,-782.57,0.00021095,2]
[336630398,1724982648195,-754.23,0.00021095,2]
[336630399,1724982648204,-500.0,0.00021095,2]
[336630400,1724982648214,-2568.45,0.00021095,2]
[336630401,1724982648225,-4807.29,0.00021095,2]
[336630402,1724982648234,-1984.15,0.00021095,2]
[336630403,1724982648243,-500.0,0.00021095,2]
[336630404,1724982648252,-1634.89,0.00021095,2]
[336630405,1724982648261,-517.98,0.00021095,2]
[336630406,1724982648270,-500.0,0.00021095,2]
[336630407,1724982648279,-562.33,0.00021095,2]
[336630408,1724982648289,-500.0,0.00021095,2]
[336630409,1724982648300,-1755.65,0.00021095,2]
[336630410,1724982648311,-542.43,0.00021095,2]
[336630411,1724982648320,-500.0,0.00021095,2]
[336630412,1724982648332,-1287.01,0.00021095,2]
[336630413,1724982648344,-500.0,0.00021095,2]
[336630414,1724982648356,-1075.78,0.00021095,2]
[336630415,1724982648366,-636.04,0.00021095,2]
[336630416,1724982648376,-2207.85,0.00021095,2]
[336630417,1724982648385,-1219.37,0.00021095,2]
[336630418,1724982648395,-1461.81,0.00021095,2]
[336630419,1724982648404,-500.0,0.00021095,2]
[336630420,1724982648413,-500.0,0.00021095,2]
[336630421,1724982648423,-1084.67675537,0.00021095,2]
[336630422,1724982648529,-705.39167507,0.00021095,2]
[336630423,1724982648542,-500.75665291,0.00021095,2]
[336630424,1724982648660,-524.71,0.00019178,2]
[336630425,1724982648670,-8252.98,0.00019726,2]
[336630426,1724982648680,-8252.98,0.0002,2]
[336630427,1724982648690,-8252.98,0.00020273,2]
[336630428,1724982648699,-8252.98,0.00020547,2]
[336630429,1724982648709,-8252.98,0.00020821,2]
[336630430,1724982648720,-246.04491665,0.00021095,2]
[336630431,1724982648730,-1095.85717944,0.00021095,2]
[336630432,1724982648939,-3290.51282056,0.00021095,2]
[336630433,1724982648949,-500.0,0.00021095,2]
[336630434,1724982648959,-500.0,0.00021095,2]
[336630435,1724982648968,-8252.98,0.00021095,2]
[336630436,1724982648979,-3000.0,0.000211,2]
[336630437,1724982648988,-818.14865459,0.0002111,5]
[336630438,1724982648997,-3000.0,0.0002111,2]
[336630439,1724982649006,-3000.0,0.0002112,2]
[336630440,1724982649015,-3000.0,0.0002113,2]
[336630441,1724982649025,-3000.0,0.0002114,2]
[336630442,1724982649035,-3000.0,0.0002115,2]
[336630443,1724982649044,-3000.0,0.0002116,2]
[336630444,1724982649053,-3000.0,0.0002117,2]
[336630445,1724982649064,-3000.0,0.0002118,2]
[336630446,1724982649074,-3000.0,0.0002119,2]
[336630447,1724982649084,-150.112233,0.000212,3]